[Event "Czech Open-Rapid 2022"]
[Site "Pardubice"]
[Date "2022.07.21"]
[Round "7.15"]
[White "Michelle Catherina, P."]
[Black "Krak, Tomas"]
[Result "0-1"]
[ECO "B54"]
[WhiteElo "2141"]
[BlackElo "2312"]
[Annotator "TA"]
[PlyCount "282"]
[EventDate "2022.07.20"]
[EventType "swiss"]
[EventCountry "CZE"]
[SourceTitle "playchess.com"]
[Source "ChessBase"]
[SourceQuality "1"]
[TimeControl "1200+10"]

{[%evp 29,282,-21,3,0,5,-36,-27,-93,-89,-91,-83,-91,-69,-68,-66,-79,-80,-147,-134,-191,-113,-142,-143,-145,-145,-145,-125,-182,-180,-200,-198,-191,-195,-189,-149,-197,-158,-223,-158,-211,-158,-256,-158,-252,-158,-258,-158,-162,-120,-229,-130,-268,-73,-81,-80,-88,-88,-86,-74,-72,0,-8,0,0,0,0,0,0,0,0,0,-10,0,-2,0,-10,-10,-10,0,-10,0,-12,0,-77,0,-95,-98,-94,-62,-200,-196,-223,-196,-303,-287,-294,-287,-298,-302,-319,-315,-489,-484,-552,-552,-556,-556,-553,-556,-556,-556,-558,-557,-556,-556,-550,-553,-553,-553,-556,-553,-553,-545,-550,-495,-500,-495,-404,-404,-468,-426,-426,-426,-426,-273,-273,-273,-511,-486,-476,0,-564,-266,-426,-428,-497,-502,-415,-452,-464,-403,-474,-251,-251,0,-63,0,-370,0,-537,-535,-527,-519,-509,-494,-489,-489,-254,-8,-8,-8,-8,0,-8,-8,-8,-8,-8,-8,-8,-8,-8,-8,-13,-13,-178,-178,-1096,-890,-178,-178,-366,-251,-408,0,-4379,-4379,-4379,-4379,-4379,-4379,-4278,-3920,-3920,-3920,-3920,-3920,-3866,-3852,-3689,-3689,-3140,-2578,-29972,-29973,-29973,-29971,-29979,-29976,-29980,-29976,-29980,-29981,-29981,-29982,-29982,-29983,-29983,-29984,-29985,-29985,-29985,-29986,-29986,-29986,-29987,-29986,-29988,-29989,-29994,-29995,-29995,-29985,-29985,-29984,-29984,-29985,-29985,-29986,-29986,-29987,-29987,-29988,-29988,-29989]} 1. e4 {[%emt 0:00:08]} c5 {[%emt 0:00:01]} 2. Nf3 {[%emt 0:00:03]} d6 {[%emt 0:00:01]} 3. d4 {[%emt 0:00:03]} cxd4 {[%emt 0:00:02]} 4. Nxd4 {[%emt 0:00:01]} Nc6 {[%emt 0:00:01]} 5. c4 {[%emt 0:00:32]} g6 {[%emt 0:00:37]} 6. Nc3 {[%emt 0:00:23]} Bg7 {[%emt 0:00:01]} 7. Be3 {[%emt 0:00:07]} Qb6 {[%emt 0:00:31]} 8. Nb3 {[%emt 0:01:08]} Bxc3+ {[%emt 0:00:03]} 9. bxc3 {[%emt 0:00:01]} Qc7 {[%emt 0:00:01]} 10. c5 {[%emt 0:01:40]} dxc5 {[%emt 0:00:03]} 11. Nxc5 {[%emt 0:00:28]} Nf6 {[%emt 0:00:37]} 12. f3 {[%emt 0:00:47]} b6 {[%emt 0:00:01]} 13. Nb3 {[%emt 0:02:27]} O-O {[%emt 0:00:04]} 14. Be2 {[%emt 0:00:21]} Ne5 {[%emt 0:00:15]} 15. Bd4 {[%emt 0:01:53]} Be6 {[%emt 0:00:05]} (15... Nh5 {seems wilder.} 16. O-O Nf4 17. Qd2 Nxe2+ 18. Qxe2 Nc4) 16. O-O {[%emt 0:00:24]} Rac8 {[%emt 0:00:07]} 17. f4 {[%emt 0:00:51]} Nc6 {[%emt 0:00:51]} 18. Bd3 {[%emt 0:02:56]} (18. Qe1 $11) 18... Nxd4 $17 {[%emt 0:02:58]} 19. cxd4 {[%emt 0:00:24]} Bxb3 {[%emt 0:01:30]} 20. Qxb3 {[%emt 0:02:32]} Qc3 {[%emt 0:00:34]} 21. Qxc3 {[%emt 0:00:44]} Rxc3 {[%emt 0:00:01]} 22. Rad1 {[%emt 0:00:14]} Rd8 {[%emt 0:00:21]} 23. Bb1 {[%emt 0:02:31]} (23. e5 $142 Ng4 24. Rf3) 23... Rc4 $1 $17 {[%emt 0:00:06]} 24. e5 {[%emt 0:02:19]} (24. Kf2 $17) 24... Ng4 {[%emt 0:00:11]} (24... Nd5 $1 $19 25. Rde1 Nc3) 25. Rfe1 {[%emt 0:00:30]} Rdxd4 {[%emt 0:00:35]} (25... Rcxd4 26. Bc2 $17) 26. Rxd4 {[%emt 0:00:02]} Rxd4 {[%emt 0:00:01]} 27. h3 {[%emt 0:00:20]} Nh6 {[%emt 0:01:01]} ({But not} 27... Rxf4 28. hxg4 Rxg4 29. Be4 $14) 28. Be4 {[%emt 0:00:15]} (28. g3 $17 {keeps fighting.}) 28... Nf5 $19 {[%emt 0:00:33]} 29. Kh2 {[%emt 0:00:39]} Ng7 {[%emt 0:00:20]} 30. Re2 {[%emt 0:00:14]} Ne6 {[%emt 0:00:03]} 31. g3 {[%emt 0:00:06]} Nc5 {[%emt 0:00:08]} 32. Bg2 {[%emt 0:00:10]} (32. Bc6 $17) 32... h6 {[%emt 0:00:20]} 33. Rc2 {[%emt 0:00:04]} (33. Bc6 $17 {was necessary.}) 33... Kg7 {[%emt 0:00:14]} 34. h4 {[%emt 0:00:06]} (34. Bc6 $17) 34... h5 {[%emt 0:01:09]} 35. Bf3 {[%emt 0:00:14]} (35. Bc6 $17 {was worth a try.}) 35... e6 {[%emt 0:00:18]} 36. Kg2 {[%emt 0:00:05]} (36. Bc6 $17) 36... Kf8 {[%emt 0:00:03]} 37. Kf2 {[%emt 0:00:14]} (37. Bc6 $17) 37... Ke7 {[%emt 0:00:03]} 38. Bc6 {[%emt 0:00:19]} Rd8 {[%emt 0:00:22]} 39. Bf3 {[%emt 0:00:09]} (39. Ke2 $17 {was called for.}) 39... Rd7 {[%emt 0:00:15]} (39... Rd3 $19 {Threatens to win with ...Ra3.} 40. Kg2 Ra3) 40. Ke3 {[%emt 0:00:11]} (40. Ke2 $17) 40... Rc7 $2 {[%emt 0:00:11]} (40... Rd3+ $19 {and Black stays clearly on top.} 41. Ke2 Ra3) 41. Rc3 {[%emt 0:00:11]} Kd8 {[%emt 0:00:42]} 42. Be2 {[%emt 0:00:08]} Rd7 {[%emt 0:00:21]} 43. Ra3 {[%emt 0:00:04]} a5 {[%emt 0:00:13]} 44. Rc3 {[%emt 0:00:06]} Kc7 {[%emt 0:00:02]} (44... Ke7 $17) 45. Rc1 {[%emt 0:00:09]} Rd8 {[%emt 0:00:08]} 46. Rc2 {[%emt 0:00:11]} Rd5 {[%emt 0:00:33]} 47. Rc1 {[%emt 0:00:04]} Rd8 {[%emt 0:00:09]} 48. Rc2 {[%emt 0:00:01]} Kd7 {[%emt 0:00:13]} 49. Rb2 {[%emt 0:00:25]} Rb8 {[%emt 0:00:33]} 50. Bb5+ {[%emt 0:00:12]} Kc7 {[%emt 0:00:16]} 51. Be2 {[%emt 0:00:03]} Rd8 {[%emt 0:00:08]} 52. Rc2 {[%emt 0:00:07]} Kb7 {[%emt 0:00:10]} 53. Rc1 {[%emt 0:00:06]} Ka7 {[%emt 0:00:08]} 54. Rc2 {[%emt 0:00:05]} Rd7 {[%emt 0:00:03]} 55. Rc1 {[%emt 0:00:06]} Na6 {[%emt 0:00:16]} 56. Rc8 {[%emt 0:00:42]} (56. Rd1 $11 Rc7 57. Rd8) 56... Nb4 {[%emt 0:00:43]} (56... Nc7 $1 $17) 57. a3 {[%emt 0:00:11]} (57. Bb5 $1 $11 {keeps the balance.} Re7 58. Rf8) 57... Nd5+ $17 {[%emt 0:00:06]} 58. Kf2 {[%emt 0:00:09]} Kb7 {[%emt 0:00:17]} 59. Rf8 {[%emt 0:00:08]} (59. Rc1 $15) 59... Kc6 $1 $19 {[%emt 0:00:56]} 60. a4 {[%emt 0:00:12]} Nc3 {[%emt 0:00:41]} 61. Rc8+ {[%emt 0:00:12]} (61. Bf3+ $142 Kc5 62. Rc8+ Kb4 63. Bc6) 61... Rc7 $19 {[%emt 0:00:06]} 62. Bf3+ {[%emt 0:00:11]} Kd7 {[%emt 0:00:05]} 63. Rf8 {[%emt 0:00:09]} Ke7 {[%emt 0:00:04]} ({Stronger than} 63... Nxa4 64. Rxf7+ Kd8 65. Rf8+ Ke7 66. Rf6 $11) 64. Rb8 {[%emt 0:00:04]} Nxa4 {[%emt 0:00:18]} 65. Be2 {[%emt 0:00:17]} (65. Ke3 $142) 65... Nc3 $19 {[%emt 0:00:35]} 66. Rxb6 {[%emt 0:00:07]} Nxe2 {[%emt 0:00:05]} 67. Kxe2 {[%emt 0:00:02]} Ra7 {[%emt 0:00:01]} 68. Rb3 {[%emt 0:00:11]} a4 {[%emt 0:00:02]} 69. Ra3 {[%emt 0:00:01]} Kd7 {[%emt 0:00:02]} 70. Kd3 {[%emt 0:00:02]} Kc6 {[%emt 0:00:02]} 71. Kc4 {[%emt 0:00:02]} Kb6 {[%emt 0:00:38]} 72. Kb4 {[%emt 0:00:03]} Rd7 {[%emt 0:00:24]} 73. Kc4 {[%emt 0:00:50]} Ka5 {[%emt 0:00:37]} 74. Kc5 {[%emt 0:00:11]} Rd5+ {[%emt 0:00:21]} 75. Kc4 {[%emt 0:00:04]} Rd8 {[%emt 0:00:13]} 76. Kc3 {[%emt 0:00:17]} Rc8+ {[%emt 0:00:05]} 77. Kb2 {[%emt 0:00:02]} Kb4 {[%emt 0:00:12]} 78. Rd3 {[%emt 0:00:05]} Rc7 {[%emt 0:00:21]} 79. Rd4+ {[%emt 0:00:10]} Ka5 {[%emt 0:00:18]} 80. Rd3 {[%emt 0:00:15]} Kb5 {[%emt 0:00:45]} 81. Rd4 {[%emt 0:00:08]} Ra7 {[%emt 0:00:14]} 82. Ka3 {[%emt 0:00:14]} Kc5 {[%emt 0:00:03]} 83. Rd8 $2 {[%emt 0:00:15]} (83. Rd2) 83... Kc4 $19 {[%emt 0:00:20]} 84. Rd1 {[%emt 0:00:10]} Kc5 $2 {[%emt 0:02:19]} (84... Rb7 $19 85. Rc1+ Kd4 86. Kxa4 Ke4) 85. Rd3 $2 {[%emt 0:00:07][%mdl 8192]} (85. Rd8 $1 $11 {and White has nothing to worry.}) 85... Kc6 {[%emt 0:00:12]} (85... Rb7 $142 {[%cal Ob7b3] And now ...Rb3+! would win.} 86. Rc3+ (86. Kxa4 Kc4) 86... Kd4) 86. Rd4 $2 {[%emt 0:00:12]} (86. Rd6+ Kc5 87. Rd2) 86... Kb5 $19 {[%emt 0:00:31]} 87. Rd8 {[%emt 0:00:09]} Rc7 {[%emt 0:00:16]} 88. Rb8+ {[%emt 0:00:11]} Kc4 {[%emt 0:00:04]} 89. Rd8 {[%emt 0:00:04]} Rb7 {[%emt 0:00:14]} 90. Rc8+ {[%emt 0:00:11]} Kb5 {[%emt 0:00:34]} (90... Kd5 $142 91. Kxa4 Ke4) 91. Rd8 $19 {[%emt 0:00:12]} Rc7 $2 {[%emt 0:00:08]} (91... Kc6 $1 $19 {aiming for ...Rb3+.} 92. Kxa4 Kc5) 92. Rb8+ $15 {[%emt 0:00:05]} Kc4 $2 {[%emt 0:00:24][%mdl 8192]} (92... Kc5 $15 93. Kxa4 Kd4 94. Rd8+ Ke4) 93. Rd8 $1 $19 {[%emt 0:00:02]} Ra7 {[%emt 0:00:04]} (93... Re7 $142 94. Ra8 Rd7 95. Rc8+ Kd4 96. Kxa4 Rb7) 94. Rd1 $1 $19 {[%emt 0:00:15]} Rb7 {[%emt 0:00:38]} 95. Rc1+ {[%emt 0:00:05]} Kd4 {[%emt 0:00:02]} 96. Kxa4 {[%emt 0:00:13]} Ke4 {[%emt 0:00:01]} 97. Rc3 {[%emt 0:00:10]} Kf5 $1 {[%emt 0:00:09]} 98. Ka5 {[%emt 0:00:23]} (98. Ka3 $142 Kg4 99. Ka2) 98... f6 $2 {[%emt 0:00:22]} (98... Kg4 $1 $19 {White must now prevent ...Rb1.} 99. Rd3 Rb1) 99. exf6 $11 {[%emt 0:00:01]} Kxf6 {[%emt 0:00:01]} 100. Ka4 $1 {[%emt 0:00:16]} e5 {[%emt 0:00:44]} 101. fxe5+ Kxe5 {[%emt 0:00:07]} 102. Rc5+ {[%emt 0:00:15]} Kf6 {[%emt 0:00:58]} 103. Rc6+ {[%emt 0:00:02]} Kf7 {[%emt 0:00:06]} 104. Rc5 {[%emt 0:00:08]} Kg7 {[%emt 0:00:06]} 105. Rd5 {[%emt 0:00:13]} Rb6 {[%emt 0:00:08]} 106. Rd7+ {[%emt 0:00:08]} Kf6 {[%emt 0:00:02]} 107. Rd5 $2 {[%emt 0:00:02]} (107. Rd4 $11) 107... Re6 $1 $19 {[%emt 0:00:12]} 108. Rd3 $2 {[%emt 0:00:32]} (108. Kb4) 108... Kf5 $19 109. Kb4 {[%emt 0:00:13]} Kg4 {[%emt 0:00:40]} 110. Kc3 $2 {[%emt 0:00:10]} (110. Kc4) 110... Rf6 {[%emt 0:00:07]} 111. Kd2 $2 {[%emt 0:00:09] [#]} (111. Kc4) 111... Re6 $2 {[%emt 0:01:13]} ({Black should try} 111... Kh3 $1 $19 {[%cal Rh3g2]} 112. Ke2 Kg2) 112. Ra3 $2 {[%mdl 8192] [#]} (112. Kc3 $11) 112... Kh3 $1 $19 {[%emt 0:00:08]} 113. Rb3 {[%emt 0:00:13]} Kg2 {[%emt 0:00:02]} 114. Ra3 {[%emt 0:00:18]} Rf6 {[%emt 0:00:03]} 115. Ke1 {[%emt 0:00:12]} Rf1+ {[%emt 0:00:09]} 116. Ke2 {[%emt 0:00:01]} Rf2+ {[%emt 0:00:01]} 117. Ke1 {[%emt 0:00:02]} Rf3 {[%emt 0:00:03]} 118. Ra2+ {[%emt 0:00:26]} Kh3 {[%emt 0:00:14]} 119. Ra4 {[%emt 0:00:12]} Rxg3 {[%emt 0:00:10]} 120. Kf2 {[%emt 0:00:07]} Rg4 {[%emt 0:00:08]} 121. Ra6 {[%emt 0:00:10]} Kxh4 {[%emt 0:00:04]} 122. Kf3 {[%emt 0:00:10]} Rg3+ {[%emt 0:00:12]} 123. Kf2 {[%emt 0:00:04]} g5 {[%emt 0:00:08]} 124. Ra4+ {[%emt 0:00:10]} g4 {[%emt 0:00:04]} 125. Ra5 {[%emt 0:00:14]} Rb3 {[%emt 0:00:11]} 126. Kg2 {[%emt 0:00:05]} Rb2+ {[%emt 0:00:02]} 127. Kf1 {[%emt 0:00:06]} g3 {[%emt 0:00:12]} 128. Kg1 {[%emt 0:00:09]} Kg4 {[%emt 0:00:05]} 129. Rc5 {[%emt 0:00:17]} h4 {[%emt 0:00:07]} 130. Rc4+ {[%emt 0:00:05]} Kh3 {[%emt 0:00:12]} 131. Rc1 {[%emt 0:00:01]} Re2 {[%emt 0:00:09]} 132. Kf1 {[%emt 0:00:22]} Re4 {[%emt 0:00:05]} 133. Kg1 {[%emt 0:00:12]} Kg4 {[%emt 0:00:01]} 134. Ra1 {[%emt 0:00:06]} h3 {[%emt 0:00:03]} 135. Rb1 {[%emt 0:00:05]} g2 {[%emt 0:00:06]} 136. Ra1 {[%emt 0:00:09]} Re3 {[%emt 0:00:05]} 137. Kh2 {[%emt 0:00:12]} Rf3 {[%emt 0:00:04]} 138. Ra4+ {[%emt 0:00:10]} Rf4 {[%emt 0:00:04]} 139. Ra3 {[%emt 0:00:11]} Rf1 {[%emt 0:00:21]} 140. Ra4+ {[%emt 0:00:08]} Kf5 {[%emt 0:00:27]} 141. Ra5+ {[%emt 0:00:16]} Ke4 {[%emt 0:00:02]} 0-1

[Event "Czech Open-Rapid 2022"]
[Site "Pardubice"]
[Date "2022.07.21"]
[Round "7.16"]
[White "Bares, Jachym"]
[Black "Jurek, Josef"]
[Result "1/2-1/2"]
[ECO "C10"]
[WhiteElo "2129"]
[BlackElo "2200"]
[Annotator "TA"]
[PlyCount "69"]
[EventDate "2022.07.20"]
[EventType "swiss"]
[EventCountry "CZE"]
[SourceTitle "playchess.com"]
[Source "ChessBase"]
[SourceQuality "1"]
[TimeControl "1200+10"]

{[%evp 9,69,0,-4,-22,-21,-28,-20,-26,-24,-30,-15,-36,-37,-48,-29,-35,-50,-82,-76,-85,-83,-106,-99,-114,-125,-146,-138,-153,-147,-140,-90,-90,-90,-98,-6,-58,0,-613,0,0,47,45,50,56,51,48,52,0,70,0,0,0,0,0,0,0,0,0,0,0,0,0]} 1. e4 e6 2. d4 d5 3. Nc3 Nc6 4. exd5 exd5 5. Bf4 Nf6 6. Nb5 {[#] C01: French: Exchange Variation.} Bb4+ $146 ({Predecessor:} 6... Bd6 7. Bxd6 cxd6 8. Qe2+ Be6 9. Nf3 O-O 10. Ng5 h6 11. Nxe6 fxe6 12. Qxe6+ Kh8 13. Qxd6 Qa5+ 14. Nc3 Nxd4 15. O-O-O Ne4 16. Nxe4 Rad8 17. Qe5 dxe4 18. Rxd4 Qe1+ {0-1 (18) Juliatto,F (1232)-Lanznaster,J (1735) Florianopolis 2018}) 7. c3 Ba5 8. Nf3 O-O 9. Be2 {Active counter play!} Ne7 10. O-O Ng6 11. Bg5 c6 12. Na3 h6 13. Be3 Qd6 14. Nc2 Bc7 15. Nce1 Re8 16. Bd3 Ng4 {[%csl LRe3,LRh2][%cal Rg4h2]} 17. Bxg6 fxg6 18. Nd3 Rxe3 ({Worse is} 18... Nxe3 19. fxe3 Rxe3 20. Qd2 $15) ({Not} 18... Nxh2 19. Bf4 Nxf3+ 20. Qxf3 $11) 19. fxe3 Nxe3 (19... Nxh2 $142 20. Rf2 (20. Nfe5 $2 Nxf1 21. Kxf1 Bf5 $19) 20... Qg3) 20. Qe2 $17 Nxf1 21. Qe8+ Kh7 ({Better is} 21... Qf8 $17 22. Qxf8+ Kxf8 23. Rxf1 Kg8) 22. Rxf1 $11 Rb8 (22... Qd8 $15 23. Qf7 Bf5) 23. Ng5+ $1 hxg5 24. Rf8 $1 {The board is on fire.} Qxf8 25. Qxf8 $14 {[#] And now Qe7 would win.} Bf5 26. Qe7 {[%csl LRc7,LRg5]} Bxd3 27. Qxc7 {[%mdl 4096] Endgame KQ-KRB} Rf8 {[%csl Gd3][%cal Rf8f1]} 28. h3 (28. g4 $1 $14) 28... Rf1+ $11 29. Kh2 Be4 $1 {The position is equal.} 30. Qg3 {Against Rf2} Rc1 {[#] White must now prevent ...Rc2.} 31. Qxg5 Rc2 {[%csl LRb2,LRg2]} 32. Qh4+ Kg8 33. Qd8+ Kh7 34. Qh4+ Kg8 35. Qd8+ {Weighted Error Value: White=0.07 (flawless) /Black=0.12 (very precise)} 1/2-1/2

[Event "Czech Open-Rapid 2022"]
[Site "Pardubice"]
[Date "2022.07.21"]
[Round "7.17"]
[White "Brejnik, Gustav"]
[Black "Melichar, Vojtech"]
[Result "1-0"]
[ECO "A52"]
[WhiteElo "2292"]
[BlackElo "1907"]
[Annotator "NA RC"]
[PlyCount "89"]
[EventDate "2022.07.20"]
[EventType "swiss"]
[EventCountry "CZE"]
[SourceTitle "playchess.com"]
[Source "ChessBase"]
[SourceQuality "1"]
[TimeControl "1200+10"]

1. d4 Nf6 2. c4 e5 3. dxe5 Ng4 4. Bf4 Nc6 5. Nf3 Bb4+ 6. Nbd2 Qe7 7. e3 Ngxe5 8. Nxe5 Nxe5 9. Be2 a5 10. O-O d6 11. Nb1 O-O 12. a3 Bc5 13. Nc3 c6 14. Qc2 Re8 15. Rad1 Be6 16. Na4 Ng6 17. Bg3 Rad8 18. Nxc5 dxc5 19. Qc3 b6 20. Bf3 Rxd1 21. Rxd1 Rd8 22. Rxd8+ Qxd8 23. h3 Ne7 24. b3 f6 25. Bf4 Qd7 26. Be4 Ng6 27. Bg3 Kf7 28. Qc2 Nf8 29. Qe2 Bf5 30. Bf3 Qd3 31. Qxd3 Bxd3 32. Bxc6 Bc2 33. Bc7 Bxb3 34. Bd5+ Ne6 35. Bxb6 Ke7 36. Bxa5 Kd6 37. Kf1 f5 38. Ke2 f4 39. e4 Nd4+ 40. Kd3 g6 41. Bc3 f3 42. Bxd4 fxg2 43. e5+ Kd7 44. Bxg2 cxd4 45. Kxd4 1-0

[Event "Czech Open-Rapid 2022"]
[Site "Pardubice"]
[Date "2022.07.21"]
[Round "7.18"]
[White "Jares, Michal"]
[Black "Klimakovs, Sergejs"]
[Result "1/2-1/2"]
[ECO "A46"]
[WhiteElo "2208"]
[BlackElo "2266"]
[Annotator "TA"]
[PlyCount "169"]
[EventDate "2022.07.20"]
[EventType "swiss"]
[EventCountry "CZE"]
[SourceTitle "playchess.com"]
[Source "ChessBase"]
[SourceQuality "1"]
[TimeControl "1200+10"]

{[%evp 17,169,-4,22,0,28,13,25,20,36,42,68,70,114,131,117,112,114,122,102,77,120,106,106,96,109,112,153,153,225,225,220,75,79,41,47,73,60,53,31,38,86,93,82,70,128,131,118,59,49,39,108,41,43,41,41,42,60,0,0,-4,0,0,0,-8,0,-8,0,0,0,0,0,0,8,0,0,0,0,0,0,0,0,0,0,0,0,0,0,0,0,0,0,0,0,0,0,0,0,0,0,0,0,0,0,0,0,0,0,0,0,0,0,0,0,0,0,0,0,0,0,0,0,0,0,0,0,0,0,0,0,0,0,0,0,0,0,0,0,0,0,0,0,0,0,0,0,0,0,0,0,0,0,0,0,0]} 1. d4 {[%emt 0:00:10]} Nf6 {[%emt 0:00:01]} 2. Nf3 {[%emt 0:00:02]} c5 {[%emt 0:00:02]} 3. g3 {[%emt 0:00:04]} cxd4 {[%emt 0:00:25]} 4. Nxd4 {[%emt 0:00:12]} Nc6 {[%emt 0:00:55]} 5. Bg2 {[%emt 0:00:08]} g6 {[%emt 0:00:07]} 6. O-O {[%emt 0:00:07]} Bg7 {[%emt 0:00:01]} 7. c4 {[%emt 0:00:19]} O-O {[%emt 0:00:07]} 8. Nc3 {[%emt 0:00:12]} Qb6 {[%emt 0:01:41] 8...Qa5 is becoming the main line.} 9. Nxc6 {[%emt 0:02:12]} bxc6 {[%emt 0:00:17]} 10. Qc2 {[%emt 0:00:35] A39: Symmetrical English vs ...g6: 4 Bg2 Bg7 5 Nf3 Nf6 6 0-0 0-0 7 d4.} Rb8 {[%emt 0:00:07][%cal Od7d5]} 11. Rb1 {[%emt 0:03:18] [#]} Rd8 $146 {[%emt 0:02:45]} ({Predecessor:} 11... c5 12. e4 d6 13. Bg5 Bb7 14. Qd2 Rfe8 15. Rfe1 Nd7 16. h4 Ne5 17. b3 Qb4 {0-1 (33) De Oliveira,G (1940)-Esteche,C (1604) Rio Negrinho 2021}) 12. e4 {[%emt 0:01:14] Prevents d5. White has an edge.} Ba6 {[%emt 0:02:29]} 13. Bf4 {[%emt 0:02:28]} Rbc8 {[%emt 0:00:11]} 14. e5 {[%emt 0:04:38] [#] And now Na4 would win.} Ne8 {[%emt 0:00:57]} 15. b3 {[%emt 0:00:31]} d5 {[%emt 0:00:44]} 16. exd6 {[%emt 0:00:07]} exd6 {[%emt 0:00:08][%cal Od6d5]} 17. Na4 {[%emt 0:01:05]} Qa5 {[%emt 0:00:40]} 18. Bd2 {[%emt 0:00:14][%cal Bf4d2,Bd2c3,Bc3f6][%mdl 32]} Qh5 {[%emt 0:00:22]} 19. Bc3 {[%emt 0:00:26]} Bf8 {[%emt 0:00:39]} 20. Rfe1 {[%emt 0:01:40]} Ng7 {[%emt 0:01:41]} 21. Rbd1 {[%emt 0:00:12]} Qf5 {[%emt 0:00:45] [#]} 22. Qxf5 {[%emt 0:00:20] 0x0.001e3a696c8cdp-1022s more active pieces.} Nxf5 {[%emt 0:00:02]} (22... gxf5 $16 {is a better defense.} 23. Bf6 Re8 24. Rxe8 Nxe8) 23. Bf6 $18 {[%emt 0:00:08]} Re8 {[%emt 0:00:22]} 24. Nc3 {[%emt 0:00:30]} (24. Rxe8 $18 {is the precise move to win.} Rxe8 25. Bxc6) 24... Re6 $16 {[%emt 0:00:19]} 25. Ne4 {[%emt 0:01:03]} d5 {[%emt 0:01:09]} 26. cxd5 {[%emt 0:00:03]} cxd5 {[%emt 0:00:01]} 27. Rxd5 {[%emt 0:00:02]} Bb7 {[%emt 0:00:37]} 28. Re5 {[%emt 0:00:11]} Bxe4 {[%emt 0:00:35]} (28... Ra6 $14) 29. Rxe6 {[%emt 0:00:10]} Bxg2 {[%emt 0:00:01]} 30. Re8 {[%emt 0:00:16]} Rxe8 {[%emt 0:01:58]} (30... Rc6 $1 $14) 31. Rxe8 {[%emt 0:00:01]} Bf3 {[%emt 0:00:01]} 32. h3 {[%emt 0:00:26]} ({White should play} 32. Rb8 $16) 32... Ng7 $14 {[%emt 0:00:15]} 33. Rc8 {[%emt 0:01:03]} a6 {[%emt 0:00:02]} ({Better is} 33... Ne6 $14) 34. Be7 {[%emt 0:00:46]} (34. a4 $16) 34... Ne6 {[%emt 0:00:01]} 35. Bxf8 Nxf8 {[%emt 0:00:01]} 36. Rc3 {[%emt 0:00:18]} Be4 {[%emt 0:00:32]} 37. b4 {[%emt 0:00:42]} (37. Rc4 $14 Bf3 38. Rc3) 37... Ne6 $11 {[%emt 0:00:31] The position is equal.} 38. f3 {[%emt 0:00:10]} Bd5 {[%emt 0:00:10]} 39. a4 {[%emt 0:00:05]} Kf8 {[%emt 0:00:06]} 40. Kf2 {[%emt 0:00:09]} Ke7 {[%emt 0:00:01]} 41. h4 {[%emt 0:00:14]} h5 {[%emt 0:00:01]} 42. Ke3 {[%emt 0:00:04]} Kd6 {[%emt 0:00:15]} 43. b5 {[%emt 0:00:07]} axb5 {[%emt 0:00:06]} 44. axb5 {[%emt 0:00:02]} Bb7 {[%emt 0:00:07]} 45. g4 {[%emt 0:00:07]} Nc7 {[%emt 0:00:17] ...Nd5+ is the strong threat.} 46. Rd3+ {[%emt 0:00:02]} Ke6 {[%emt 0:00:37]} 47. gxh5 {[%emt 0:00:15]} gxh5 {[%emt 0:00:02]} 48. Kf4 {[%emt 0:00:19]} f6 {[%emt 0:00:12]} 49. Re3+ {[%emt 0:00:11]} Kf7 {[%emt 0:00:09] ( -> ...Nd5+)} 50. Rb3 {[%emt 0:00:17]} Nd5+ {[%emt 0:00:13]} 51. Kf5 {[%emt 0:00:20]} Ne7+ {[%emt 0:01:06]} 52. Kf4 {[%emt 0:00:02]} Ke6 {[%emt 0:00:05]} 53. Ra3 {[%emt 0:00:19]} Nd5+ {[%emt 0:00:17]} 54. Kg3 {[%emt 0:00:01]} Kd6 {[%emt 0:00:05]} 55. Ra7 {[%emt 0:00:20]} Kc7 {[%emt 0:00:03]} 56. Ra1 {[%emt 0:00:14]} Kb6 {[%emt 0:00:13]} 57. Re1 {[%emt 0:00:11]} Kxb5 {[%emt 0:00:07]} 58. Re8 {[%emt 0:00:02]} f5 {[%emt 0:02:15]} 59. Re5 {[%emt 0:00:14]} f4+ {[%emt 0:00:01]} 60. Kf2 {[%emt 0:00:08]} Kc5 {[%emt 0:00:16]} 61. Rxh5 {[%emt 0:00:03]} Kd6 {[%emt 0:00:12]} 62. Rh8 {[%emt 0:00:10]} Ke6 {[%emt 0:00:20]} 63. Rh6+ {[%emt 0:00:05]} Nf6 {[%emt 0:00:11]} 64. Rh8 {[%emt 0:00:04]} Kf7 {[%emt 0:00:06]} 65. Rb8 {[%emt 0:00:04]} Bd5 {[%emt 0:00:02]} 66. Rb4 {[%emt 0:00:23]} Nh5 {[%emt 0:00:01]} 67. Rb5 {[%emt 0:00:25]} Ke6 {[%emt 0:00:03]} 68. Rb6+ {[%emt 0:00:02]} Kf5 {[%emt 0:00:03]} 69. Rb5 {[%emt 0:00:17]} Nf6 {[%emt 0:00:06]} 70. Rb8 {[%emt 0:00:03]} Bf7 {[%emt 0:00:53]} 71. Rb5+ {[%emt 0:00:08]} Nd5 {[%emt 0:00:04]} 72. Rb7 {[%emt 0:00:14]} Be6 {[%emt 0:00:10]} 73. Rg7 {[%emt 0:00:08]} Kf6 {[%emt 0:00:01]} 74. Rg5 {[%emt 0:00:09]} Ne3 {[%emt 0:00:15]} 75. Ra5 {[%emt 0:00:04]} Nf5 {[%emt 0:00:03]} 76. Ra4 {[%emt 0:00:07]} Nxh4 {[%emt 0:00:52]} 77. Rxf4+ {[%emt 0:00:03]} Kg5 {[%emt 0:00:30]} 78. Ra4 {[%emt 0:00:01]} Nf5 {[%emt 0:00:08]} 79. Ra6 $1 {[%emt 0:00:05]} Bd5 {[%emt 0:00:16]} 80. Ra5 {[%emt 0:00:03]} Bc6 {[%emt 0:00:09]} 81. Rc5 {[%emt 0:00:16]} Bb7 {[%emt 0:00:03]} 82. Rc7 {[%emt 0:00:03]} Bd5 {[%emt 0:00:02]} 83. Ra7 {[%emt 0:00:05]} Bc6 {[%emt 0:00:07]} 84. Rc7 {[%emt 0:00:22]} Bd5 {[%emt 0:00:02]} 85. Rc5 {[%emt 0:00:04] Weighted Error Value: White=0.12 (very precise) /Black=0.12 (very precise)} 1/2-1/2